[Event "Titled Tuesday Blitz June 15 2021"]
[White "Donskov, Anatoly"]
[Black "Mirzoev, Azer"]
[WhiteFideId "24143413"]
[BlackFideId "13400304"]
[WhiteElo "2221"]
[BlackElo "2525"]
[Result "0-1"]
[Round "06"]
[TimeControl "180+1"]
[Date "2021.06.15"]
[WhiteClock "0:00:02"]
[BlackClock "0:00:09"]

1. e4 {[%clk 0:03:00]}  c6 {[%clk 0:03:00]} 2. d4 {[%clk 0:03:00]}  d5 {[%clk 0:03:00]} 3. Nc3 {[%clk 0:02:58]}  dxe4 {[%clk 0:03:00]} 4. Nxe4 {[%clk 0:02:59]}  Bf5 {[%clk 0:03:00]} 5. Ng3 {[%clk 0:03:00]}  Bg6 {[%clk 0:03:00]} 6. h4 {[%clk 0:03:00]}  h6 {[%clk 0:03:00]} 7. Nf3 {[%clk 0:03:01]}  e6 {[%clk 0:03:01]} 8. Bd3 {[%clk 0:03:01]}  Bxd3 {[%clk 0:02:58]} 9. Qxd3 {[%clk 0:03:02]}  Nf6 {[%clk 0:02:58]} 10. Bd2 {[%clk 0:03:02]}  c5 {[%clk 0:02:58]} 11. Qb5+ {[%clk 0:02:55]}  Qd7 {[%clk 0:02:57]} 12. Qxd7+ {[%clk 0:02:55]}  Nbxd7 {[%clk 0:02:57]} 13. dxc5 {[%clk 0:02:56]}  Bxc5 {[%clk 0:02:54]} 14. Bc3 {[%clk 0:02:51]}  O-O {[%clk 0:02:46]} 15. Ke2 {[%clk 0:02:43]}  Rac8 {[%clk 0:02:44]} 16. Bxf6 {[%clk 0:02:39]}  Nxf6 {[%clk 0:02:43]} 17. c3 {[%clk 0:02:39]}  Ng4 {[%clk 0:02:38]} 18. Ne4 {[%clk 0:02:39]}  Bb6 {[%clk 0:02:39]} 19. Nh2 {[%clk 0:02:32]}  Ne5 {[%clk 0:02:37]} 20. Nd6 {[%clk 0:02:25]}  Rc6 {[%clk 0:02:30]} 21. Rad1 {[%clk 0:02:20]}  Bc7 {[%clk 0:02:21]} 22. Nb5 {[%clk 0:02:16]}  Bb6 {[%clk 0:02:19]} 23. Nd6 {[%clk 0:02:15]}  Rb8 {[%clk 0:02:18]} 24. Nf3 {[%clk 0:02:12]}  Ng4 {[%clk 0:02:16]} 25. Rhf1 {[%clk 0:02:02]}  f5 {[%clk 0:02:12]} 26. Nb5 {[%clk 0:01:51]}  a6 {[%clk 0:02:02]} 27. Nbd4 {[%clk 0:01:15]}  Rd6 {[%clk 0:01:48]} 28. g3 {[%clk 0:01:13]}  Rf8 {[%clk 0:01:36]} 29. Nd2 {[%clk 0:00:51]}  Bxd4 {[%clk 0:01:28]} 30. Nc4 {[%clk 0:00:51]}  Rc6 {[%clk 0:01:21]} 31. Na5 {[%clk 0:00:47]}  Rb6 {[%clk 0:00:19]} 32. Nc4 {[%clk 0:00:46]}  Rc6 {[%clk 0:00:11]} 33. Na5 {[%clk 0:00:47]}  Rc5 {[%clk 0:00:11]} 34. Nxb7 {[%clk 0:00:16]}  Re5+ {[%clk 0:00:11]} 35. Kd3 {[%clk 0:00:16]}  Bxf2 {[%clk 0:00:11]} 36. Rd2 {[%clk 0:00:09]}  Ba7 {[%clk 0:00:10]} 37. Nd6 {[%clk 0:00:08]}  Re3+ {[%clk 0:00:10]} 38. Kc2 {[%clk 0:00:09]}  Rxg3 {[%clk 0:00:10]} 39. Re1 {[%clk 0:00:07]}  Ne3+ {[%clk 0:00:09]} 40. Kb1 {[%clk 0:00:06]}  e5 {[%clk 0:00:10]} 41. Rde2 {[%clk 0:00:03]}  f4 {[%clk 0:00:10]} 42. Ne4 {[%clk 0:00:03]}  Rg4 {[%clk 0:00:10]} 43. Nf2 {[%clk 0:00:03]}  Rg2 {[%clk 0:00:09]} 44. Nd3 {[%clk 0:00:03]}  Rxe2 {[%clk 0:00:09]} 45. Rxe2 {[%clk 0:00:04]}  f3 {[%clk 0:00:09]} 46. Rf2 {[%clk 0:00:04]}  e4 {[%clk 0:00:09]} 47. Ne5 {[%clk 0:00:04]}  Ng2 {[%clk 0:00:09]} 48. Rf1 {[%clk 0:00:02]}  Rf5 {[%clk 0:00:09]} 0-1


[Site "https://www.chess.com"]

[Event "Titled Tuesday Blitz June 15 2021"]
[White "Fier, Alexandr"]
[Black "Niemann, Hans Moke"]
[WhiteFideId "2107139"]
[BlackFideId "2093596"]
[WhiteElo "2569"]
[BlackElo "2492"]
[Result "0-1"]
[Round "06"]
[TimeControl "180+1"]
[Date "2021.06.15"]
[WhiteClock "0:00:17"]
[BlackClock "0:00:03"]

1. d4 {[%clk 0:03:00]}  g6 {[%clk 0:02:56]} 2. e4 {[%clk 0:02:59]}  Bg7 {[%clk 0:02:56]} 3. Nc3 {[%clk 0:02:59]}  c6 {[%clk 0:02:56]} 4. Be3 {[%clk 0:02:57]}  d5 {[%clk 0:02:54]} 5. e5 {[%clk 0:02:57]}  Nh6 {[%clk 0:02:52]} 6. Qd2 {[%clk 0:02:58]}  Nf5 {[%clk 0:02:50]} 7. Bf4 {[%clk 0:02:58]}  f6 {[%clk 0:02:50]} 8. g4 {[%clk 0:02:54]}  Nh4 {[%clk 0:02:16]} 9. Bg3 {[%clk 0:02:52]}  fxe5 {[%clk 0:02:02]} 10. Bxh4 {[%clk 0:02:42]}  exd4 {[%clk 0:02:01]} 11. Nce2 {[%clk 0:02:42]}  Qb6 {[%clk 0:02:01]} 12. O-O-O {[%clk 0:02:39]}  Bxg4 {[%clk 0:01:59]} 13. f3 {[%clk 0:02:36]}  Bf5 {[%clk 0:01:52]} 14. Nxd4 {[%clk 0:02:33]}  c5 {[%clk 0:01:27]} 15. Bb5+ {[%clk 0:02:33]}  Bd7 {[%clk 0:01:16]} 16. Qe2 {[%clk 0:02:25]}  e5 {[%clk 0:00:49]} 17. Bxd7+ {[%clk 0:02:21]}  Nxd7 {[%clk 0:00:49]} 18. Nb3 {[%clk 0:02:15]}  c4 {[%clk 0:00:44]} 19. Rxd5 {[%clk 0:01:59]}  cxb3 {[%clk 0:00:42]} 20. axb3 {[%clk 0:02:00]}  Qc6 {[%clk 0:00:32]} 21. Qd3 {[%clk 0:01:53]}  Nc5 {[%clk 0:00:25]} 22. Qc4 {[%clk 0:01:53]}  Rc8 {[%clk 0:00:18]} 23. Ne2 {[%clk 0:01:51]}  b5 {[%clk 0:00:18]} 24. Qg4 {[%clk 0:01:37]}  Nxb3+ {[%clk 0:00:12]} 25. Kb1 {[%clk 0:01:36]}  Qxc2+ {[%clk 0:00:12]} 26. Ka2 {[%clk 0:01:35]}  O-O {[%clk 0:00:13]} 27. Be7 {[%clk 0:01:22]}  Rfe8 {[%clk 0:00:10]} 28. Qe6+ {[%clk 0:01:19]}  Kh8 {[%clk 0:00:10]} 29. Rxe5 {[%clk 0:01:13]}  Nd2 {[%clk 0:00:07]} 30. Qd7 {[%clk 0:00:24]}  Qb3+ {[%clk 0:00:04]} 31. Ka1 {[%clk 0:00:23]}  Bxe5 {[%clk 0:00:04]} 32. Nd4 {[%clk 0:00:22]}  Qc4 {[%clk 0:00:03]} 33. Ne6 {[%clk 0:00:17]}  Qa4+ {[%clk 0:00:02]} 34. Ba3 {[%clk 0:00:17]}  Qxa3# {[%clk 0:00:03]} 0-1


[Site "https://www.chess.com"]

[Event "Titled Tuesday Blitz June 15 2021"]
[White "Gormally, Daniel W"]
[Black "Paravyan, David"]
[WhiteFideId "406465"]
[BlackFideId "4194985"]
[WhiteElo "2543"]
[BlackElo "2562"]
[Result "1/2-1/2"]
[Round "06"]
[TimeControl "180+1"]
[Date "2021.06.15"]
[WhiteClock "0:00:20"]
[BlackClock "0:00:06"]

1. d4 {[%clk 0:03:00]}  d5 {[%clk 0:02:59]} 2. c4 {[%clk 0:02:59]}  e6 {[%clk 0:02:59]} 3. Nf3 {[%clk 0:02:59]}  Nf6 {[%clk 0:02:59]} 4. g3 {[%clk 0:03:00]}  dxc4 {[%clk 0:02:56]} 5. Bg2 {[%clk 0:02:59]}  c5 {[%clk 0:02:56]} 6. O-O {[%clk 0:02:57]}  Nc6 {[%clk 0:02:56]} 7. dxc5 {[%clk 0:02:54]}  Qxd1 {[%clk 0:02:57]} 8. Rxd1 {[%clk 0:02:54]}  Bxc5 {[%clk 0:02:58]} 9. Nbd2 {[%clk 0:02:54]}  c3 {[%clk 0:02:59]} 10. bxc3 {[%clk 0:02:54]}  O-O {[%clk 0:02:59]} 11. Nb3 {[%clk 0:02:54]}  Be7 {[%clk 0:02:53]} 12. c4 {[%clk 0:02:43]}  Bd7 {[%clk 0:02:48]} 13. Be3 {[%clk 0:02:36]}  Rfc8 {[%clk 0:02:32]} 14. Rac1 {[%clk 0:02:25]}  Be8 {[%clk 0:02:29]} 15. Nfd4 {[%clk 0:02:19]}  Ng4 {[%clk 0:02:08]} 16. Nxc6 {[%clk 0:02:03]}  Bxc6 {[%clk 0:02:06]} 17. Bxc6 {[%clk 0:02:03]}  Rxc6 {[%clk 0:02:01]} 18. Rd7 {[%clk 0:02:01]}  Ba3 {[%clk 0:01:59]} 19. Rc3 {[%clk 0:01:59]}  b6 {[%clk 0:01:37]} 20. Nd4 {[%clk 0:01:43]}  Rd6 {[%clk 0:01:37]} 21. Rxd6 {[%clk 0:01:38]}  Bxd6 {[%clk 0:01:38]} 22. Nb5 {[%clk 0:01:38]}  Be7 {[%clk 0:01:23]} 23. Rd3 {[%clk 0:01:33]}  Nxe3 {[%clk 0:01:13]} 24. fxe3 {[%clk 0:01:25]}  Bc5 {[%clk 0:01:08]} 25. Kf2 {[%clk 0:01:24]}  h5 {[%clk 0:00:46]} 26. Rd7 {[%clk 0:01:24]}  a6 {[%clk 0:00:42]} 27. Nc3 {[%clk 0:01:24]}  Rc8 {[%clk 0:00:25]} 28. Ne4 {[%clk 0:01:24]}  f6 {[%clk 0:00:24]} 29. Rb7 {[%clk 0:01:06]}  Bf8 {[%clk 0:00:18]} 30. Nd2 {[%clk 0:00:50]}  Rc6 {[%clk 0:00:13]} 31. Nf3 {[%clk 0:00:44]}  e5 {[%clk 0:00:08]} 32. Nd2 {[%clk 0:00:40]}  Bb4 {[%clk 0:00:07]} 33. Ne4 {[%clk 0:00:40]}  Rxc4 {[%clk 0:00:06]} 34. Kf3 {[%clk 0:00:39]}  b5 {[%clk 0:00:05]} 35. Rb6 {[%clk 0:00:37]}  a5 {[%clk 0:00:04]} 36. Rxb5 {[%clk 0:00:36]}  Rc2 {[%clk 0:00:04]} 37. a3 {[%clk 0:00:34]}  Bxa3 {[%clk 0:00:04]} 38. Rxa5 {[%clk 0:00:35]}  Bf8 {[%clk 0:00:05]} 39. Ra7 {[%clk 0:00:31]}  Rc1 {[%clk 0:00:04]} 40. h3 {[%clk 0:00:31]}  Rf1+ {[%clk 0:00:04]} 41. Kg2 {[%clk 0:00:31]}  Rb1 {[%clk 0:00:05]} 42. g4 {[%clk 0:00:31]}  hxg4 {[%clk 0:00:04]} 43. hxg4 {[%clk 0:00:32]}  Rb4 {[%clk 0:00:04]} 44. Kf3 {[%clk 0:00:31]}  Rc4 {[%clk 0:00:05]} 45. Ra8 {[%clk 0:00:28]}  Kf7 {[%clk 0:00:05]} 46. Ra7+ {[%clk 0:00:29]}  Ke6 {[%clk 0:00:05]} 47. Ra6+ {[%clk 0:00:28]}  Kd5 {[%clk 0:00:03]} 48. Ra5+ {[%clk 0:00:27]}  Bc5 {[%clk 0:00:03]} 49. Nxc5 {[%clk 0:00:19]}  Rxc5 {[%clk 0:00:04]} 50. Rxc5+ {[%clk 0:00:19]}  Kxc5 {[%clk 0:00:05]} 51. Ke4 {[%clk 0:00:19]}  g6 {[%clk 0:00:04]} 52. g5 {[%clk 0:00:20]}  fxg5 {[%clk 0:00:02]} 53. Kxe5 {[%clk 0:00:20]}  Kc6 {[%clk 0:00:02]} 54. Ke4 {[%clk 0:00:18]}  Kd6 {[%clk 0:00:02]} 55. Kf3 {[%clk 0:00:19]}  Ke5 {[%clk 0:00:03]} 56. Kg4 {[%clk 0:00:19]}  Ke4 {[%clk 0:00:04]} 57. Kxg5 {[%clk 0:00:19]}  Kxe3 {[%clk 0:00:05]} 58. Kxg6 {[%clk 0:00:20]}  Kxe2 {[%clk 0:00:06]} 1/2-1/2


[Site "https://www.chess.com"]

[Event "Titled Tuesday Blitz June 15 2021"]
[White "Goryachkina, Aleksandra"]
[Black "Karpov, Vadim"]
[WhiteFideId "4147103"]
[BlackFideId "4155025"]
[WhiteElo "2441"]
[BlackElo "2290"]
[Result "1-0"]
[Round "06"]
[TimeControl "180+1"]
[Date "2021.06.15"]
[WhiteClock "0:00:15"]
[BlackClock "0:00:03"]

1. e4 {[%clk 0:02:59]}  c6 {[%clk 0:02:58]} 2. d4 {[%clk 0:02:58]}  d5 {[%clk 0:02:58]} 3. e5 {[%clk 0:02:58]}  Bf5 {[%clk 0:02:55]} 4. Nf3 {[%clk 0:02:58]}  e6 {[%clk 0:02:55]} 5. Be2 {[%clk 0:02:58]}  Ne7 {[%clk 0:02:55]} 6. O-O {[%clk 0:02:58]}  Nd7 {[%clk 0:02:55]} 7. Nbd2 {[%clk 0:02:43]}  Bg6 {[%clk 0:02:54]} 8. Nb3 {[%clk 0:02:42]}  Nc8 {[%clk 0:02:54]} 9. a4 {[%clk 0:02:38]}  Be7 {[%clk 0:02:54]} 10. a5 {[%clk 0:02:37]}  a6 {[%clk 0:02:54]} 11. Ne1 {[%clk 0:02:25]}  O-O {[%clk 0:02:52]} 12. Bd3 {[%clk 0:02:25]}  c5 {[%clk 0:02:49]} 13. Bxg6 {[%clk 0:02:21]}  hxg6 {[%clk 0:02:48]} 14. c3 {[%clk 0:02:19]}  Na7 {[%clk 0:02:48]} 15. Be3 {[%clk 0:02:16]}  Rc8 {[%clk 0:02:43]} 16. Qg4 {[%clk 0:02:07]}  Nb5 {[%clk 0:02:36]} 17. Nf3 {[%clk 0:02:06]}  Nb8 {[%clk 0:02:33]} 18. Bg5 {[%clk 0:02:04]}  cxd4 {[%clk 0:02:29]} 19. cxd4 {[%clk 0:01:58]}  Rc6 {[%clk 0:02:07]} 20. Bxe7 {[%clk 0:01:32]}  Qxe7 {[%clk 0:02:06]} 21. Ng5 {[%clk 0:01:32]}  f6 {[%clk 0:02:03]} 22. Nh3 {[%clk 0:01:24]}  g5 {[%clk 0:01:51]} 23. f4 {[%clk 0:01:16]}  Qb4 {[%clk 0:01:33]} 24. fxg5 {[%clk 0:01:12]}  Qxb3 {[%clk 0:01:28]} 25. gxf6 {[%clk 0:01:08]}  Qe3+ {[%clk 0:01:27]} 26. Kh1 {[%clk 0:01:08]}  Qh6 {[%clk 0:01:26]} 27. Rf4 {[%clk 0:00:28]}  Nd7 {[%clk 0:00:51]} 28. Raf1 {[%clk 0:00:27]}  Nxd4 {[%clk 0:00:40]} 29. f7+ {[%clk 0:00:19]}  Rxf7 {[%clk 0:00:22]} 30. Rxf7 {[%clk 0:00:19]}  Nxe5 {[%clk 0:00:17]} 31. Rf8+ {[%clk 0:00:18]}  Kh7 {[%clk 0:00:18]} 32. Qxd4 {[%clk 0:00:18]}  Ng6 {[%clk 0:00:17]} 33. Qd3 {[%clk 0:00:18]}  Rc1 {[%clk 0:00:14]} 34. Rf2 {[%clk 0:00:18]}  Kg8 {[%clk 0:00:10]} 35. Rxc1 {[%clk 0:00:16]}  Qxc1+ {[%clk 0:00:10]} 36. Rf1 {[%clk 0:00:16]}  Qh6 {[%clk 0:00:07]} 37. b4 {[%clk 0:00:15]}  Ne5 {[%clk 0:00:07]} 38. Qg3 {[%clk 0:00:15]}  Nc4 {[%clk 0:00:03]} 39. Ng5 {[%clk 0:00:15]} 1-0


[Site "https://www.chess.com"]

[Event "Titled Tuesday Blitz June 15 2021"]
[White "Hansen, Eric"]
[Black "SpeedofLight0"]
[WhiteFideId "2606771"]
[WhiteElo "2568"]
[BlackElo "2838"]
[Result "1-0"]
[Round "06"]
[TimeControl "180+1"]
[Date "2021.06.15"]
[WhiteClock "0:00:28"]
[BlackClock "0:00:20"]

1. b3 {[%clk 0:03:00]}  c5 {[%clk 0:02:56]} 2. Bb2 {[%clk 0:03:00]}  Nf6 {[%clk 0:02:56]} 3. e3 {[%clk 0:03:00]}  Nc6 {[%clk 0:02:56]} 4. f4 {[%clk 0:02:51]}  g6 {[%clk 0:02:54]} 5. Bb5 {[%clk 0:02:49]}  Bg7 {[%clk 0:02:53]} 6. Bxc6 {[%clk 0:02:48]}  dxc6 {[%clk 0:02:52]} 7. Nf3 {[%clk 0:02:48]}  O-O {[%clk 0:02:52]} 8. O-O {[%clk 0:02:48]}  Bg4 {[%clk 0:02:41]} 9. Qe1 {[%clk 0:02:46]}  Nd5 {[%clk 0:02:39]} 10. Bxg7 {[%clk 0:02:45]}  Kxg7 {[%clk 0:02:40]} 11. Ne5 {[%clk 0:02:45]}  Be6 {[%clk 0:02:40]} 12. d3 {[%clk 0:02:40]}  f6 {[%clk 0:02:35]} 13. Nf3 {[%clk 0:02:38]}  Bg4 {[%clk 0:02:34]} 14. Nbd2 {[%clk 0:02:10]}  Nb4 {[%clk 0:02:28]} 15. Qc1 {[%clk 0:02:06]}  Qd6 {[%clk 0:02:24]} 16. a3 {[%clk 0:02:05]}  Nd5 {[%clk 0:02:23]} 17. Re1 {[%clk 0:01:59]}  Qe6 {[%clk 0:02:16]} 18. h3 {[%clk 0:01:49]}  Bxf3 {[%clk 0:02:14]} 19. Nxf3 {[%clk 0:01:50]}  Qd6 {[%clk 0:02:07]} 20. Qb2 {[%clk 0:01:48]}  a5 {[%clk 0:02:04]} 21. Rad1 {[%clk 0:01:46]}  a4 {[%clk 0:01:56]} 22. c4 {[%clk 0:01:33]}  Nc7 {[%clk 0:01:51]} 23. bxa4 {[%clk 0:01:08]}  Rfb8 {[%clk 0:01:34]} 24. Qb3 {[%clk 0:01:03]}  Ne6 {[%clk 0:01:32]} 25. d4 {[%clk 0:00:57]}  cxd4 {[%clk 0:01:15]} 26. Nxd4 {[%clk 0:00:57]}  Nc5 {[%clk 0:01:15]} 27. Qb4 {[%clk 0:00:51]}  Na6 {[%clk 0:00:35]} 28. Qxd6 {[%clk 0:00:50]}  exd6 {[%clk 0:00:36]} 29. Ne6+ {[%clk 0:00:51]}  Kf7 {[%clk 0:00:36]} 30. Rxd6 {[%clk 0:00:52]}  Re8 {[%clk 0:00:29]} 31. f5 {[%clk 0:00:37]}  gxf5 {[%clk 0:00:28]} 32. Nd4 {[%clk 0:00:34]}  Nc5 {[%clk 0:00:23]} 33. Nxf5 {[%clk 0:00:30]}  Re5 {[%clk 0:00:23]} 34. Rf1 {[%clk 0:00:29]}  Ne4 {[%clk 0:00:23]} 35. Rd7+ {[%clk 0:00:28]}  Kg6 {[%clk 0:00:20]} 36. Rg7+ {[%clk 0:00:27]}  Kh5 {[%clk 0:00:20]} 37. g4# {[%clk 0:00:28]} 1-0


[Site "https://www.chess.com"]

[Event "Titled Tuesday Blitz June 15 2021"]
[White "Javakhadze, Zurab"]
[Black "Navalgund, Niranjan"]
[WhiteFideId "13603647"]
[BlackFideId "5030854"]
[WhiteElo "2381"]
[BlackElo "2290"]
[Result "1-0"]
[Round "06"]
[TimeControl "180+1"]
[Date "2021.06.15"]
[WhiteClock "0:00:50"]
[BlackClock "0:00:20"]

1. c4 {[%clk 0:03:00]}  e5 {[%clk 0:02:59]} 2. Nc3 {[%clk 0:02:56]}  Nc6 {[%clk 0:02:59]} 3. g3 {[%clk 0:02:56]}  f5 {[%clk 0:03:00]} 4. Bg2 {[%clk 0:02:56]}  Nf6 {[%clk 0:03:00]} 5. Nf3 {[%clk 0:02:55]}  e4 {[%clk 0:02:56]} 6. Ng5 {[%clk 0:02:53]}  Bc5 {[%clk 0:02:48]} 7. O-O {[%clk 0:02:50]}  O-O {[%clk 0:02:43]} 8. d3 {[%clk 0:02:50]}  exd3 {[%clk 0:02:35]} 9. Qxd3 {[%clk 0:02:47]}  d6 {[%clk 0:02:34]} 10. Bd5+ {[%clk 0:02:33]}  Nxd5 {[%clk 0:02:26]} 11. Qxd5+ {[%clk 0:02:32]}  Kh8 {[%clk 0:02:26]} 12. Nf7+ {[%clk 0:02:32]}  Rxf7 {[%clk 0:02:26]} 13. Qxf7 {[%clk 0:02:32]}  Ne5 {[%clk 0:02:26]} 14. Qh5 {[%clk 0:02:22]}  Be6 {[%clk 0:02:20]} 15. b3 {[%clk 0:02:21]}  Ng4 {[%clk 0:02:07]} 16. Qg5 {[%clk 0:02:05]}  Qf8 {[%clk 0:01:46]} 17. Bb2 {[%clk 0:02:02]}  h6 {[%clk 0:01:43]} 18. Qf4 {[%clk 0:01:55]}  Kh7 {[%clk 0:01:43]} 19. Na4 {[%clk 0:01:53]}  Bb6 {[%clk 0:01:19]} 20. Nxb6 {[%clk 0:01:42]}  axb6 {[%clk 0:01:19]} 21. a4 {[%clk 0:01:19]}  Rd8 {[%clk 0:01:08]} 22. Rad1 {[%clk 0:01:16]}  Qe7 {[%clk 0:00:58]} 23. e4 {[%clk 0:01:15]}  Qf7 {[%clk 0:00:51]} 24. exf5 {[%clk 0:01:15]}  Qxf5 {[%clk 0:00:51]} 25. Qxf5+ {[%clk 0:01:14]}  Bxf5 {[%clk 0:00:52]} 26. Rfe1 {[%clk 0:01:14]}  Bc2 {[%clk 0:00:51]} 27. Rc1 {[%clk 0:01:10]}  Bxb3 {[%clk 0:00:49]} 28. Re7 {[%clk 0:01:09]}  Rg8 {[%clk 0:00:39]} 29. Rxc7 {[%clk 0:01:09]}  Bxa4 {[%clk 0:00:40]} 30. Rxb7 {[%clk 0:01:08]}  Kg6 {[%clk 0:00:36]} 31. Rxb6 {[%clk 0:01:08]}  Rf8 {[%clk 0:00:35]} 32. Rxd6+ {[%clk 0:01:08]}  Kh5 {[%clk 0:00:35]} 33. f4 {[%clk 0:01:03]}  Re8 {[%clk 0:00:30]} 34. h3 {[%clk 0:00:59]}  Ne3 {[%clk 0:00:26]} 35. Bxg7 {[%clk 0:00:57]}  Nf5 {[%clk 0:00:23]} 36. g4+ {[%clk 0:00:57]}  Kh4 {[%clk 0:00:23]} 37. gxf5 {[%clk 0:00:55]}  Kg3 {[%clk 0:00:24]} 38. Be5 {[%clk 0:00:52]}  h5 {[%clk 0:00:20]} 39. Rc3+ {[%clk 0:00:50]}  Kh4 {[%clk 0:00:20]} 40. Bf6# {[%clk 0:00:50]} 1-0


[Site "https://www.chess.com"]

[Event "Titled Tuesday Blitz June 15 2021"]
[White "Khanin, Semen"]
[Black "Skatchkov, Pavel"]
[WhiteFideId "4111990"]
[BlackFideId "4121848"]
[WhiteElo "2521"]
[BlackElo "2476"]
[Result "1-0"]
[Round "06"]
[TimeControl "180+1"]
[Date "2021.06.15"]
[WhiteClock "0:00:43"]
[BlackClock "0:00:17"]

1. d4 {[%clk 0:02:59]}  Nf6 {[%clk 0:02:59]} 2. c4 {[%clk 0:02:59]}  e6 {[%clk 0:03:00]} 3. Nf3 {[%clk 0:02:58]}  b6 {[%clk 0:03:00]} 4. g3 {[%clk 0:02:55]}  Bb7 {[%clk 0:03:00]} 5. Bg2 {[%clk 0:02:55]}  Be7 {[%clk 0:03:01]} 6. O-O {[%clk 0:02:55]}  O-O {[%clk 0:03:02]} 7. Re1 {[%clk 0:02:55]}  Na6 {[%clk 0:03:02]} 8. Nc3 {[%clk 0:02:54]}  Ne4 {[%clk 0:03:02]} 9. Bd2 {[%clk 0:02:50]}  Bf6 {[%clk 0:02:40]} 10. Rc1 {[%clk 0:02:48]}  d5 {[%clk 0:02:20]} 11. cxd5 {[%clk 0:02:46]}  exd5 {[%clk 0:02:20]} 12. Bf4 {[%clk 0:02:46]}  c5 {[%clk 0:02:13]} 13. Qa4 {[%clk 0:02:35]}  Nc7 {[%clk 0:02:06]} 14. Red1 {[%clk 0:02:14]}  Ne6 {[%clk 0:01:47]} 15. Nxe4 {[%clk 0:01:51]}  dxe4 {[%clk 0:01:48]} 16. dxc5 {[%clk 0:01:51]}  Qe8 {[%clk 0:01:38]} 17. Qxe8 {[%clk 0:01:49]}  Raxe8 {[%clk 0:01:39]} 18. Ne5 {[%clk 0:01:23]}  Nxc5 {[%clk 0:01:38]} 19. Nd7 {[%clk 0:01:23]}  Nxd7 {[%clk 0:01:05]} 20. Rxd7 {[%clk 0:01:23]}  Bc8 {[%clk 0:01:00]} 21. Rxa7 {[%clk 0:01:22]}  Bxb2 {[%clk 0:00:57]} 22. Rb1 {[%clk 0:01:18]}  Rd8 {[%clk 0:00:50]} 23. Bxe4 {[%clk 0:01:11]}  Bd4 {[%clk 0:00:50]} 24. Bc7 {[%clk 0:00:57]}  Rd7 {[%clk 0:00:50]} 25. e3 {[%clk 0:00:46]}  Bc5 {[%clk 0:00:49]} 26. Bxb6 {[%clk 0:00:43]}  Rxa7 {[%clk 0:00:48]} 27. Bxc5 {[%clk 0:00:43]}  Be6 {[%clk 0:00:17]} 1-0


[Site "https://www.chess.com"]

[Event "Titled Tuesday Blitz June 15 2021"]
[White "Kim, Sergey"]
[Black "Shapkin, Anatoliy"]
[WhiteFideId "13700570"]
[BlackFideId "34108332"]
[WhiteElo "2492"]
[BlackElo "2223"]
[Result "0-1"]
[Round "06"]
[TimeControl "180+1"]
[Date "2021.06.15"]
[WhiteClock "0:00:04"]
[BlackClock "0:00:21"]

1. d4 {[%clk 0:03:00]}  Nf6 {[%clk 0:02:59]} 2. c4 {[%clk 0:03:00]}  c5 {[%clk 0:02:58]} 3. d5 {[%clk 0:03:00]}  b5 {[%clk 0:02:58]} 4. cxb5 {[%clk 0:03:00]}  a6 {[%clk 0:02:59]} 5. b6 {[%clk 0:03:00]}  g6 {[%clk 0:03:00]} 6. Nc3 {[%clk 0:03:00]}  d6 {[%clk 0:03:00]} 7. e4 {[%clk 0:03:00]}  Nbd7 {[%clk 0:03:00]} 8. Nf3 {[%clk 0:02:59]}  Bg7 {[%clk 0:03:00]} 9. Be2 {[%clk 0:02:59]}  O-O {[%clk 0:03:00]} 10. O-O {[%clk 0:02:59]}  Nxb6 {[%clk 0:03:00]} 11. a4 {[%clk 0:02:59]}  a5 {[%clk 0:03:00]} 12. Ra3 {[%clk 0:02:54]}  Ne8 {[%clk 0:02:58]} 13. Qc2 {[%clk 0:02:50]}  Nc7 {[%clk 0:02:58]} 14. Bg5 {[%clk 0:02:43]}  Ba6 {[%clk 0:02:56]} 15. Bxa6 {[%clk 0:02:19]}  Nxa6 {[%clk 0:02:57]} 16. Nb5 {[%clk 0:02:17]}  Qd7 {[%clk 0:02:53]} 17. Re3 {[%clk 0:01:56]}  Nb4 {[%clk 0:02:50]} 18. Qd1 {[%clk 0:01:38]}  Nc4 {[%clk 0:02:36]} 19. Re2 {[%clk 0:01:31]}  Nxb2 {[%clk 0:02:27]} 20. Qb3 {[%clk 0:01:21]}  N2d3 {[%clk 0:01:44]} 21. Rd1 {[%clk 0:01:09]}  Rfc8 {[%clk 0:01:38]} 22. Qc4 {[%clk 0:00:53]}  Nb2 {[%clk 0:01:34]} 23. Rxb2 {[%clk 0:00:52]}  Bxb2 {[%clk 0:01:35]} 24. e5 {[%clk 0:00:51]}  dxe5 {[%clk 0:01:17]} 25. d6 {[%clk 0:00:42]}  e6 {[%clk 0:01:11]} 26. Bf6 {[%clk 0:00:31]}  Nd5 {[%clk 0:00:35]} 27. Bxe5 {[%clk 0:00:23]}  Bxe5 {[%clk 0:00:34]} 28. Nxe5 {[%clk 0:00:24]}  Qd8 {[%clk 0:00:34]} 29. h4 {[%clk 0:00:18]}  Ra6 {[%clk 0:00:32]} 30. Qe4 {[%clk 0:00:12]}  Rxd6 {[%clk 0:00:31]} 31. Nxd6 {[%clk 0:00:11]}  Qxd6 {[%clk 0:00:31]} 32. h5 {[%clk 0:00:11]}  Nc3 {[%clk 0:00:26]} 33. Rxd6 {[%clk 0:00:08]}  Nxe4 {[%clk 0:00:27]} 34. Rd7 {[%clk 0:00:08]}  c4 {[%clk 0:00:27]} 35. Nxf7 {[%clk 0:00:08]}  c3 {[%clk 0:00:27]} 36. Nh6+ {[%clk 0:00:07]}  Kf8 {[%clk 0:00:24]} 37. Rxh7 {[%clk 0:00:06]}  Ke8 {[%clk 0:00:22]} 38. hxg6 {[%clk 0:00:04]}  Nf6 {[%clk 0:00:21]} 0-1


[Site "https://www.chess.com"]

[Event "Titled Tuesday Blitz June 15 2021"]
[White "Kollars, Dmitrij"]
[Black "Balakrishnan, Praveen"]
[WhiteFideId "12909572"]
[BlackFideId "2064871"]
[WhiteElo "2576"]
[BlackElo "2237"]
[Result "1/2-1/2"]
[Round "06"]
[TimeControl "180+1"]
[Date "2021.06.15"]
[WhiteClock "0:00:03"]
[BlackClock "0:00:08"]

1. c4 {[%clk 0:03:00]}  g6 {[%clk 0:02:56]} 2. d4 {[%clk 0:02:54]}  Bg7 {[%clk 0:02:55]} 3. Nc3 {[%clk 0:02:54]}  c5 {[%clk 0:02:53]} 4. d5 {[%clk 0:02:52]}  Bxc3+ {[%clk 0:02:53]} 5. bxc3 {[%clk 0:02:53]}  f5 {[%clk 0:02:53]} 6. e4 {[%clk 0:02:38]}  fxe4 {[%clk 0:02:51]} 7. f3 {[%clk 0:02:38]}  Nf6 {[%clk 0:02:44]} 8. fxe4 {[%clk 0:02:33]}  d6 {[%clk 0:02:44]} 9. e5 {[%clk 0:02:25]}  dxe5 {[%clk 0:02:41]} 10. Nf3 {[%clk 0:02:22]}  e4 {[%clk 0:02:39]} 11. Ng5 {[%clk 0:02:20]}  Qd6 {[%clk 0:02:35]} 12. g3 {[%clk 0:02:04]}  h6 {[%clk 0:02:15]} 13. Nh3 {[%clk 0:02:02]}  g5 {[%clk 0:02:05]} 14. Nf2 {[%clk 0:01:58]}  Nbd7 {[%clk 0:02:04]} 15. Bg2 {[%clk 0:01:57]}  Ne5 {[%clk 0:02:01]} 16. O-O {[%clk 0:01:54]}  O-O {[%clk 0:02:00]} 17. Nxe4 {[%clk 0:01:48]}  Nxe4 {[%clk 0:01:59]} 18. Rxf8+ {[%clk 0:01:49]}  Kxf8 {[%clk 0:01:59]} 19. Bxe4 {[%clk 0:01:50]}  Bg4 {[%clk 0:01:50]} 20. Qb3 {[%clk 0:01:30]}  Kg7 {[%clk 0:01:49]} 21. Be3 {[%clk 0:01:26]}  Rf8 {[%clk 0:01:43]} 22. Qxb7 {[%clk 0:01:15]}  Nxc4 {[%clk 0:01:26]} 23. Bf2 {[%clk 0:00:58]}  Qf6 {[%clk 0:01:26]} 24. Bxc5 {[%clk 0:00:45]}  Qxc3 {[%clk 0:01:16]} 25. Rb1 {[%clk 0:00:32]}  Nd2 {[%clk 0:01:05]} 26. Qxa7 {[%clk 0:00:31]}  Kg8 {[%clk 0:00:30]} 27. Bh7+ {[%clk 0:00:17]}  Kxh7 {[%clk 0:00:19]} 28. Qxe7+ {[%clk 0:00:17]}  Kg6 {[%clk 0:00:14]} 29. Qxf8 {[%clk 0:00:18]}  Nxb1 {[%clk 0:00:12]} 30. Qe8+ {[%clk 0:00:18]}  Kg7 {[%clk 0:00:10]} 31. Qe7+ {[%clk 0:00:11]}  Kg6 {[%clk 0:00:10]} 32. Qe8+ {[%clk 0:00:10]}  Kg7 {[%clk 0:00:10]} 33. Bf8+ {[%clk 0:00:11]}  Kf6 {[%clk 0:00:08]} 34. Qe7+ {[%clk 0:00:09]}  Kg6 {[%clk 0:00:09]} 35. Qe8+ {[%clk 0:00:09]}  Kf6 {[%clk 0:00:09]} 36. Qe7+ {[%clk 0:00:03]}  Kg6 {[%clk 0:00:09]} 37. Qe8+ {[%clk 0:00:03]}  Kf6 {[%clk 0:00:08]} 1/2-1/2


[Site "https://www.chess.com"]